[Event "*** Titled Tuesday Blitz"]
[Site "Chess.com"]
[Date "2020.04.28"]
[Round "2"]
[White "Grandmaster2B"]
[Black "Durarbayli"]
[Result "0-1"]
[WhiteElo "2517"]
[BlackElo "2780"]
[TimeControl "180+1"]
[EndTime "10:18:35 PDT"]
[Termination "Durarbayli won on time"]

1. e4 {[%clk 0:03:00.5]} 1... c5 {[%clk 0:02:56.2]} 2. Nf3 {[%clk 0:03:00.3]}
2... d6 {[%clk 0:02:56.7]} 3. d4 {[%clk 0:03:00.6]} 3... cxd4 {[%clk 0:02:57.3]}
4. Nxd4 {[%clk 0:03:01.5]} 4... Nf6 {[%clk 0:02:57.9]} 5. Nc3 {[%clk 0:03:01.9]}
5... Nc6 {[%clk 0:02:58.5]} 6. f3 {[%clk 0:02:59]} 6... e5 {[%clk 0:02:53.4]} 7.
Nb3 {[%clk 0:02:58.2]} 7... Be6 {[%clk 0:02:52.7]} 8. Be3 {[%clk 0:02:57]} 8...
Be7 {[%clk 0:02:49.9]} 9. Qd2 {[%clk 0:02:55.5]} 9... d5 {[%clk 0:02:45.2]} 10.
exd5 {[%clk 0:02:39.5]} 10... Nxd5 {[%clk 0:02:46.1]} 11. Nxd5 {[%clk
0:02:39.9]} 11... Qxd5 {[%clk 0:02:45.6]} 12. Qxd5 {[%clk 0:02:26.4]} 12... Bxd5
{[%clk 0:02:46.5]} 13. O-O-O {[%clk 0:02:27.1]} 13... O-O-O {[%clk 0:02:45.4]}
14. Be2 {[%clk 0:02:02.9]} 14... h5 {[%clk 0:02:38.5]} 15. Kb1 {[%clk
0:01:45.2]} 15... g6 {[%clk 0:02:21.8]} 16. Rd2 {[%clk 0:01:27.4]} 16... Be6
{[%clk 0:01:57.5]} 17. Rhd1 {[%clk 0:01:23.6]} 17... Rxd2 {[%clk 0:01:57.4]} 18.
Rxd2 {[%clk 0:01:24.5]} 18... b6 {[%clk 0:01:57.3]} 19. c3 {[%clk 0:01:10.5]}
19... f5 {[%clk 0:01:51.8]} 20. Kc2 {[%clk 0:01:05.7]} 20... g5 {[%clk
0:01:39.9]} 21. Bb5 {[%clk 0:00:43.7]} 21... Kc7 {[%clk 0:01:35.4]} 22. Re2
{[%clk 0:00:43.4]} 22... Bf6 {[%clk 0:01:11.8]} 23. Bf2 {[%clk 0:00:27.1]} 23...
Bd7 {[%clk 0:01:03.4]} 24. Bd3 {[%clk 0:00:15]} 24... g4 {[%clk 0:01:01.5]} 25.
Nd2 {[%clk 0:00:13.9]} 25... Re8 {[%clk 0:00:47.5]} 26. Nc4 {[%clk 0:00:10.6]}
26... gxf3 {[%clk 0:00:31.1]} 27. gxf3 {[%clk 0:00:09.9]} 27... Rg8 {[%clk
0:00:25.3]} 28. Ne3 {[%clk 0:00:07]} 28... Ne7 {[%clk 0:00:23.4]} 29. Be1 {[%clk
0:00:02.5]} 29... b5 {[%clk 0:00:18.5]} 30. Rg2 {[%clk 0:00:01.6]} 30... Rxg2+
{[%clk 0:00:15.9]} 31. Nxg2 {[%clk 0:00:02.5]} 31... Bc6 {[%clk 0:00:15.6]} 32.
Be2 {[%clk 0:00:02.3]} 32... f4 {[%clk 0:00:15.7]} 33. Bh4 {[%clk 0:00:01.8]}
33... Bxh4 {[%clk 0:00:13.2]} 34. Nxh4 {[%clk 0:00:02.7]} 34... Nd5 {[%clk
0:00:13.7]} 35. Kd2 {[%clk 0:00:02.5]} 35... Ne3 {[%clk 0:00:13.2]} 36. Ng6
{[%clk 0:00:02.5]} 36... Kd6 {[%clk 0:00:13.5]} 37. h4 {[%clk 0:00:01.9]} 37...
a6 {[%clk 0:00:13.4]} 38. Nh8 {[%clk 0:00:01.8]} 38... Be8 {[%clk 0:00:11.7]}
39. Bd3 {[%clk 0:00:01.5]} 39... Ng2 {[%clk 0:00:10.1]} 40. Ng6 {[%clk
0:00:01.3]} 40... Ke6 {[%clk 0:00:10.2]} 41. Nf8+ {[%clk 0:00:01.2]} 41... Kf6
{[%clk 0:00:10]} 42. Nh7+ {[%clk 0:00:01.8]} 42... Kg7 {[%clk 0:00:09.4]} 43.
Ng5 {[%clk 0:00:02.2]} 43... Nxh4 {[%clk 0:00:09.3]} 44. Ne6+ {[%clk 0:00:03.1]}
44... Kf6 {[%clk 0:00:09.3]} 45. Nc7 {[%clk 0:00:04]} 45... Bc6 {[%clk
0:00:08.1]} 46. Nxa6 {[%clk 0:00:04.2]} 46... Nxf3+ {[%clk 0:00:07.9]} 47. Ke2
{[%clk 0:00:01.8]} 47... e4 {[%clk 0:00:08.2]} 0-1

[Event "*** Titled Tuesday Blitz"]
[Site "Chess.com"]
[Date "2020.04.28"]
[Round "2"]
[White "Alexander_Moskalenko"]
[Black "Vusatiuk_Vladimir"]
[Result "1-0"]
[WhiteElo "2869"]
[BlackElo "2346"]
[TimeControl "180+1"]
[EndTime "10:18:35 PDT"]
[Termination "Alexander_Moskalenko won by resignation"]

1. c4 {[%clk 0:02:42.6]} 1... e5 {[%clk 0:02:57.1]} 2. Nc3 {[%clk 0:02:42.7]}
2... Bb4 {[%clk 0:02:57.6]} 3. Nd5 {[%clk 0:02:41.9]} 3... Be7 {[%clk
0:02:57.8]} 4. d4 {[%clk 0:02:40.6]} 4... d6 {[%clk 0:02:54.9]} 5. Nf3 {[%clk
0:02:39.3]} 5... Nc6 {[%clk 0:02:51]} 6. e4 {[%clk 0:02:34.3]} 6... Nf6 {[%clk
0:02:46.9]} 7. Nxf6+ {[%clk 0:02:31.7]} 7... Bxf6 {[%clk 0:02:45.5]} 8. d5
{[%clk 0:02:31.7]} 8... Nd4 {[%clk 0:02:44.5]} 9. Be3 {[%clk 0:02:17]} 9... Bg4
{[%clk 0:02:42]} 10. Be2 {[%clk 0:02:16.8]} 10... Bxf3 {[%clk 0:02:41.4]} 11.
Bxf3 {[%clk 0:02:16.5]} 11... c5 {[%clk 0:02:37.8]} 12. dxc6 {[%clk 0:02:15]}
12... Nxc6 {[%clk 0:02:31.8]} 13. O-O {[%clk 0:02:12.4]} 13... O-O {[%clk
0:02:31.3]} 14. Bg4 {[%clk 0:02:11.7]} 14... Bg5 {[%clk 0:02:25]} 15. Bxg5
{[%clk 0:02:03.8]} 15... Qxg5 {[%clk 0:02:25.9]} 16. b3 {[%clk 0:02:04.7]} 16...
Nd4 {[%clk 0:02:02.5]} 17. a4 {[%clk 0:01:48.8]} 17... Rab8 {[%clk 0:01:52.5]}
18. Re1 {[%clk 0:01:43.3]} 18... Nxb3 {[%clk 0:01:37]} 19. Qxb3 {[%clk
0:01:41.3]} 19... Qxg4 {[%clk 0:01:37.2]} 20. Rad1 {[%clk 0:01:41.2]} 20... Rfd8
{[%clk 0:01:31.7]} 21. a5 {[%clk 0:01:36.5]} 21... Qd7 {[%clk 0:01:20.9]} 22.
Rd5 {[%clk 0:01:31.2]} 22... Qc6 {[%clk 0:01:18.3]} 23. Red1 {[%clk 0:01:30.7]}
23... b6 {[%clk 0:01:13.9]} 24. axb6 {[%clk 0:01:30.9]} 24... Rxb6 {[%clk
0:01:10.6]} 25. Qd3 {[%clk 0:01:27.4]} 25... Rf8 {[%clk 0:00:54.1]} 26. h3
{[%clk 0:01:06.7]} 26... Rb4 {[%clk 0:00:45.8]} 27. Rxd6 {[%clk 0:01:02.2]}
27... Qxc4 {[%clk 0:00:44.8]} 28. Qxc4 {[%clk 0:01:02.8]} 28... Rxc4 {[%clk
0:00:45.7]} 29. f3 {[%clk 0:01:03.7]} 29... Rc7 {[%clk 0:00:41.2]} 30. Ra6
{[%clk 0:00:58.2]} 30... f6 {[%clk 0:00:40.3]} 31. h4 {[%clk 0:00:57.8]} 31...
Rb8 {[%clk 0:00:39.4]} 32. Rdd6 {[%clk 0:00:56.9]} 32... Kf7 {[%clk 0:00:37.7]}
33. Kh2 {[%clk 0:00:56.6]} 33... Rb2 {[%clk 0:00:35.5]} 34. h5 {[%clk
0:00:56.8]} 34... h6 {[%clk 0:00:35.2]} 35. Kh3 {[%clk 0:00:56.1]} 35... Rbb7
{[%clk 0:00:30.1]} 36. Kg4 {[%clk 0:00:54.8]} 36... Rd7 {[%clk 0:00:30.5]} 37.
Re6 {[%clk 0:00:52.5]} 37... Re7 {[%clk 0:00:30.3]} 38. Red6 {[%clk 0:00:51]}
38... Red7 {[%clk 0:00:30.1]} 39. Rxd7+ {[%clk 0:00:51.5]} 39... Rxd7 {[%clk
0:00:30.6]} 40. Kf5 {[%clk 0:00:52.4]} 40... Rb7 {[%clk 0:00:30.2]} 41. g3
{[%clk 0:00:46.2]} 41... Ke8 {[%clk 0:00:28.6]} 42. Kg6 {[%clk 0:00:44.2]} 42...
Kd8 {[%clk 0:00:25.5]} 43. f4 {[%clk 0:00:42.5]} 43... exf4 {[%clk 0:00:23.6]}
44. gxf4 {[%clk 0:00:43.4]} 44... Re7 {[%clk 0:00:22.2]} 45. Kf5 {[%clk
0:00:41.9]} 45... Kc8 {[%clk 0:00:21.9]} 46. e5 {[%clk 0:00:42.2]} 46... fxe5
{[%clk 0:00:20.4]} 47. fxe5 {[%clk 0:00:43.1]} 47... Kb7 {[%clk 0:00:18.5]} 48.
Ra1 {[%clk 0:00:43.5]} 48... Kc6 {[%clk 0:00:18.1]} 49. e6 {[%clk 0:00:43.4]}
49... Kd6 {[%clk 0:00:11.9]} 50. Rd1+ {[%clk 0:00:42.7]} 50... Kc6 {[%clk
0:00:12.5]} 51. Ke5 {[%clk 0:00:43.3]} 51... a5 {[%clk 0:00:11.5]} 52. Rc1+
{[%clk 0:00:43.6]} 52... Kb5 {[%clk 0:00:10.4]} 53. Kd6 {[%clk 0:00:44.5]} 53...
Ra7 {[%clk 0:00:10.8]} 54. e7 {[%clk 0:00:44.7]} 54... Ra6+ {[%clk 0:00:10.7]}
55. Kd7 {[%clk 0:00:44.8]} 55... Ra7+ {[%clk 0:00:11.2]} 56. Rc7 {[%clk
0:00:45.3]} 56... Ra8 {[%clk 0:00:04]} 57. e8=Q {[%clk 0:00:45.4]} 57... Rxe8
{[%clk 0:00:04.3]} 58. Kxe8 {[%clk 0:00:46.3]} 58... a4 {[%clk 0:00:04.9]} 59.
Rxg7 {[%clk 0:00:46.6]} 59... a3 {[%clk 0:00:05]} 60. Ra7 {[%clk 0:00:47.2]}
60... Kb4 {[%clk 0:00:04.8]} 61. Kf7 {[%clk 0:00:47.4]} 61... Kb3 {[%clk
0:00:05.3]} 62. Kg6 {[%clk 0:00:47.5]} 62... Kb2 {[%clk 0:00:06.2]} 63. Kxh6
{[%clk 0:00:47.1]} 63... a2 {[%clk 0:00:07.1]} 64. Rxa2+ {[%clk 0:00:47.4]}
64... Kxa2 {[%clk 0:00:07.1]} 65. Kg7 {[%clk 0:00:48.3]} 65... Kb3 {[%clk
0:00:08]} 66. h6 {[%clk 0:00:49.2]} 1-0

[Event "*** Titled Tuesday Blitz"]
[Site "Chess.com"]
[Date "2020.04.28"]
[Round "2"]
[White "TheoSlade"]
[Black "dlp300"]
[Result "0-1"]
[WhiteElo "2291"]
[BlackElo "2548"]
[TimeControl "180+1"]
[EndTime "10:18:35 PDT"]
[Termination "dlp300 won on time"]

1. d4 {[%clk 0:03:00.9]} 1... Nf6 {[%clk 0:02:58.1]} 2. c4 {[%clk 0:03:01]} 2...
e6 {[%clk 0:02:58.2]} 3. g3 {[%clk 0:03:01.5]} 3... d5 {[%clk 0:02:55.4]} 4. Bg2
{[%clk 0:03:01.8]} 4... Bb4+ {[%clk 0:02:55.4]} 5. Bd2 {[%clk 0:03:01.6]} 5...
Be7 {[%clk 0:02:54.5]} 6. Nf3 {[%clk 0:03:01.8]} 6... c6 {[%clk 0:02:51.3]} 7.
O-O {[%clk 0:02:59.6]} 7... O-O {[%clk 0:02:50.5]} 8. Qc2 {[%clk 0:02:59.1]}
8... b6 {[%clk 0:02:48.9]} 9. Bf4 {[%clk 0:02:59.1]} 9... Ba6 {[%clk 0:02:48.7]}
10. Nbd2 {[%clk 0:02:47.8]} 10... Nbd7 {[%clk 0:02:43.3]} 11. Rac1 {[%clk
0:02:35.4]} 11... c5 {[%clk 0:02:36.4]} 12. Rfd1 {[%clk 0:02:22.8]} 12... cxd4
{[%clk 0:02:22.2]} 13. Nxd4 {[%clk 0:01:55]} 13... Rc8 {[%clk 0:02:22.3]} 14.
Bg5 {[%clk 0:01:37.6]} 14... Bxc4 {[%clk 0:02:06.7]} 15. Qa4 {[%clk 0:01:36]}
15... Nc5 {[%clk 0:01:40.6]} 16. Qc2 {[%clk 0:01:26.9]} 16... Ba6 {[%clk
0:01:36.3]} 17. b4 {[%clk 0:01:19.8]} 17... Nce4 {[%clk 0:01:32.3]} 18. Qa4
{[%clk 0:01:12.1]} 18... Nxg5 {[%clk 0:01:00.8]} 19. Qxa6 {[%clk 0:01:10.1]}
19... Qd7 {[%clk 0:01:01.1]} 20. b5 {[%clk 0:00:49.9]} 20... Rxc1 {[%clk
0:00:56.1]} 21. Rxc1 {[%clk 0:00:49.9]} 21... Nge4 {[%clk 0:00:57]} 22. Nxe4
{[%clk 0:00:44.8]} 22... dxe4 {[%clk 0:00:54.4]} 23. Nc6 {[%clk 0:00:38.4]}
23... Bc5 {[%clk 0:00:54.5]} 24. Qxa7 {[%clk 0:00:32.1]} 24... Qd2 {[%clk
0:00:54.1]} 25. Rf1 {[%clk 0:00:26.9]} 25... Qxe2 {[%clk 0:00:52.2]} 26. Qa4
{[%clk 0:00:22.2]} 26... h5 {[%clk 0:00:47.1]} 27. Nd4 {[%clk 0:00:19.8]} 27...
Qd3 {[%clk 0:00:34.4]} 28. Nb3 {[%clk 0:00:18.7]} 28... Be7 {[%clk 0:00:31.5]}
29. Qd4 {[%clk 0:00:13.6]} 29... Qxb5 {[%clk 0:00:31.4]} 30. Bxe4 {[%clk
0:00:11.5]} 30... Rd8 {[%clk 0:00:31.1]} 31. Qe3 {[%clk 0:00:09.5]} 31... Qa4
{[%clk 0:00:26.6]} 32. Bb1 {[%clk 0:00:05.6]} 32... b5 {[%clk 0:00:26.7]} 33.
Rc1 {[%clk 0:00:03.8]} 33... h4 {[%clk 0:00:24.1]} 34. Kg2 {[%clk 0:00:03.5]}
34... Qg4 {[%clk 0:00:22.7]} 35. Nd2 {[%clk 0:00:02.7]} 35... h3+ {[%clk
0:00:22.2]} 36. Kg1 {[%clk 0:00:03.3]} 36... Nd5 {[%clk 0:00:21]} 37. Qe4 {[%clk
0:00:02.1]} 37... Qxe4 {[%clk 0:00:17.9]} 38. Nxe4 {[%clk 0:00:03]} 38... Bf6
{[%clk 0:00:14]} 39. Kf1 {[%clk 0:00:02]} 39... Bd4 {[%clk 0:00:12.3]} 40. Rd1
{[%clk 0:00:01.5]} 40... Bb6 {[%clk 0:00:11.4]} 41. Bd3 {[%clk 0:00:01.2]} 41...
b4 {[%clk 0:00:11.3]} 42. Rb1 {[%clk 0:00:01.8]} 42... f5 {[%clk 0:00:10.7]} 43.
Nd2 {[%clk 0:00:01.1]} 43... Nc3 {[%clk 0:00:10.4]} 0-1

[Event "*** Titled Tuesday Blitz"]
[Site "Chess.com"]
[Date "2020.04.28"]
[Round "2"]
[White "LimeInTheCoconut"]
[Black "Ana_Berke"]
[Result "1-0"]
[WhiteElo "2402"]
[BlackElo "2105"]
[TimeControl "180+1"]
[EndTime "10:18:35 PDT"]
[Termination "LimeInTheCoconut won by resignation"]

1. g3 {[%clk 0:03:00.9]} 1... c5 {[%clk 0:02:58.8]} 2. c4 {[%clk 0:02:59.9]}
2... Nc6 {[%clk 0:02:59.1]} 3. Bg2 {[%clk 0:02:59.4]} 3... e5 {[%clk 0:02:59.7]}
4. Nc3 {[%clk 0:02:58]} 4... d6 {[%clk 0:02:58.5]} 5. a3 {[%clk 0:02:57.2]} 5...
Nge7 {[%clk 0:02:58.3]} 6. Rb1 {[%clk 0:02:53.4]} 6... a5 {[%clk 0:02:58.3]} 7.
d3 {[%clk 0:02:52.4]} 7... g6 {[%clk 0:02:56.9]} 8. h4 {[%clk 0:02:50.4]} 8...
h5 {[%clk 0:02:52.7]} 9. Bg5 {[%clk 0:02:38.1]} 9... Bg7 {[%clk 0:02:51.2]} 10.
Nd5 {[%clk 0:02:37.1]} 10... O-O {[%clk 0:02:48.9]} 11. Nf6+ {[%clk 0:02:34.7]}
11... Kh8 {[%clk 0:02:43.6]} 12. Nf3 {[%clk 0:02:12.9]} 12... Nd4 {[%clk
0:02:42.7]} 13. e3 {[%clk 0:02:07.6]} 13... Ne6 {[%clk 0:02:41.5]} 14. Nd2
{[%clk 0:01:46]} 14... Bxf6 {[%clk 0:01:50]} 15. Bxf6+ {[%clk 0:01:43]} 15...
Ng7 {[%clk 0:01:46]} 16. Ne4 {[%clk 0:01:27.2]} 16... Qd7 {[%clk 0:01:41.1]} 17.
Bh3 {[%clk 0:01:03.1]} 17... Qc7 {[%clk 0:01:39.1]} 18. g4 {[%clk 0:00:55.2]}
18... Ng8 {[%clk 0:01:30.1]} 19. Bxg7+ {[%clk 0:00:44.7]} 19... Kxg7 {[%clk
0:01:29.6]} 20. gxh5 {[%clk 0:00:45.6]} 20... Bxh3 {[%clk 0:01:21.1]} 21. Rxh3
{[%clk 0:00:46.1]} 21... Rad8 {[%clk 0:01:16.4]} 22. Rg3 {[%clk 0:00:28.9]}
22... Qe7 {[%clk 0:01:14.2]} 23. hxg6 {[%clk 0:00:22.2]} 23... fxg6 {[%clk
0:01:12.4]} 24. Qg4 {[%clk 0:00:21.5]} 24... Qf7 {[%clk 0:01:08]} 25. h5 {[%clk
0:00:17.7]} 25... Qf5 {[%clk 0:01:02.3]} 26. Qxg6+ {[%clk 0:00:17.3]} 26... Qxg6
{[%clk 0:01:02.4]} 27. Rxg6+ {[%clk 0:00:18.2]} 27... Kf7 {[%clk 0:00:49.2]} 28.
Ke2 {[%clk 0:00:19.1]} 28... Ne7 {[%clk 0:00:46.8]} 29. Rxd6 {[%clk 0:00:18.8]}
29... Nf5 {[%clk 0:00:43.4]} 30. Rf6+ {[%clk 0:00:16.6]} 30... Ke7 {[%clk
0:00:42]} 31. Rxf8 {[%clk 0:00:16.8]} 31... Rxf8 {[%clk 0:00:42.3]} 32. Nxc5
{[%clk 0:00:16]} 32... b6 {[%clk 0:00:36.9]} 33. Ne4 {[%clk 0:00:16.2]} 33...
Rh8 {[%clk 0:00:36.6]} 34. Rh1 {[%clk 0:00:14.3]} 34... Rh6 {[%clk 0:00:36.2]}
35. b4 {[%clk 0:00:13.8]} 35... Ng7 {[%clk 0:00:34.6]} 36. bxa5 {[%clk
0:00:13.2]} 36... bxa5 {[%clk 0:00:35.5]} 37. d4 {[%clk 0:00:11]} 37... Ke6
{[%clk 0:00:33.6]} 38. d5+ {[%clk 0:00:10.4]} 38... Kd7 {[%clk 0:00:31.9]} 39.
Kd3 {[%clk 0:00:10.5]} 39... Nxh5 {[%clk 0:00:28.1]} 40. Ng3 {[%clk 0:00:08.9]}
40... e4+ {[%clk 0:00:23.4]} 41. Kd2 {[%clk 0:00:05.2]} 41... Rf6 {[%clk
0:00:18.6]} 42. Rxh5 {[%clk 0:00:04.3]} 42... Rxf2+ {[%clk 0:00:18.7]} 43. Kc3
{[%clk 0:00:05]} 43... Ra2 {[%clk 0:00:18.7]} 44. Nxe4 {[%clk 0:00:05.3]} 44...
Rxa3+ {[%clk 0:00:18.9]} 45. Kd4 {[%clk 0:00:06]} 45... Ra1 {[%clk 0:00:18.6]}
46. Rh7+ {[%clk 0:00:06.7]} 46... Kc8 {[%clk 0:00:17.5]} 47. c5 {[%clk
0:00:07.6]} 47... Rd1+ {[%clk 0:00:17.1]} 48. Ke5 {[%clk 0:00:08.3]} 48... a4
{[%clk 0:00:16.9]} 49. Kd6 {[%clk 0:00:08.7]} 49... Kb8 {[%clk 0:00:16.7]} 50.
c6 {[%clk 0:00:09.3]} 50... a3 {[%clk 0:00:16.1]} 51. Rh8+ {[%clk 0:00:09.8]}
51... Ka7 {[%clk 0:00:16.5]} 52. c7 {[%clk 0:00:10.7]} 52... Rc1 {[%clk
0:00:17]} 53. c8=Q {[%clk 0:00:11.1]} 53... Rxc8 {[%clk 0:00:17]} 54. Rxc8
{[%clk 0:00:12]} 54... a2 {[%clk 0:00:17.5]} 55. Rc1 {[%clk 0:00:12.9]} 55...
Kb6 {[%clk 0:00:18.1]} 56. Ra1 {[%clk 0:00:13.8]} 56... Kb5 {[%clk 0:00:18.5]}
57. Rxa2 {[%clk 0:00:14.2]} 57... Kc4 {[%clk 0:00:19.3]} 58. Rd2 {[%clk
0:00:15.1]} 1-0

[Event "*** Titled Tuesday Blitz"]
[Site "Chess.com"]
[Date "2020.04.28"]
[Round "2"]
[White "Noam_Vitenberg"]
[Black "ChessQueen"]
[Result "0-1"]
[WhiteElo "2499"]
[BlackElo "2738"]
[TimeControl "180+1"]
[EndTime "10:18:37 PDT"]
[Termination "ChessQueen won on time"]

1. d4 {[%clk 0:03:00.9]} 1... Nf6 {[%clk 0:02:56.8]} 2. c4 {[%clk 0:02:59.3]}
2... e6 {[%clk 0:02:56.9]} 3. Nf3 {[%clk 0:02:57.4]} 3... b6 {[%clk 0:02:56.7]}
4. g3 {[%clk 0:02:56.6]} 4... Bb7 {[%clk 0:02:57.1]} 5. Bg2 {[%clk 0:02:55.8]}
5... Be7 {[%clk 0:02:57.7]} 6. O-O {[%clk 0:02:55.3]} 6... O-O {[%clk
0:02:57.6]} 7. Re1 {[%clk 0:02:54.8]} 7... d5 {[%clk 0:02:57.2]} 8. cxd5 {[%clk
0:02:48.9]} 8... exd5 {[%clk 0:02:58.1]} 9. Nc3 {[%clk 0:02:48]} 9... c5 {[%clk
0:02:58.7]} 10. Bf4 {[%clk 0:02:34.8]} 10... Na6 {[%clk 0:02:58.9]} 11. Rc1
{[%clk 0:02:33.9]} 11... Ne4 {[%clk 0:02:57.3]} 12. Qa4 {[%clk 0:02:16.1]} 12...
cxd4 {[%clk 0:02:43.3]} 13. Nxd4 {[%clk 0:02:08.4]} 13... Nxc3 {[%clk 0:02:43]}
14. bxc3 {[%clk 0:01:44.9]} 14... Nc5 {[%clk 0:02:42.3]} 15. Qc2 {[%clk
0:01:42.6]} 15... Ne4 {[%clk 0:02:26]} 16. c4 {[%clk 0:01:27.4]} 16... Bc5
{[%clk 0:02:26]} 17. Be3 {[%clk 0:01:05.1]} 17... Re8 {[%clk 0:02:23.7]} 18.
Red1 {[%clk 0:01:01.6]} 18... Qf6 {[%clk 0:02:14.3]} 19. Qa4 {[%clk 0:00:39.6]}
19... dxc4 {[%clk 0:01:49.1]} 20. Qxc4 {[%clk 0:00:40.5]} 20... Rac8 {[%clk
0:01:44.3]} 21. Qd3 {[%clk 0:00:37.8]} 21... Rcd8 {[%clk 0:01:41.4]} 22. Qc4
{[%clk 0:00:34.7]} 22... Bd5 {[%clk 0:01:35.3]} 23. Qa4 {[%clk 0:00:33.7]} 23...
h6 {[%clk 0:01:29.3]} 24. Rd3 {[%clk 0:00:33.3]} 24... Re5 {[%clk 0:01:01.6]}
25. Rcd1 {[%clk 0:00:33.1]} 25... Ng5 {[%clk 0:00:46.7]} 26. f4 {[%clk
0:00:24.9]} 26... Rxe3 {[%clk 0:00:46.2]} 27. Rxe3 {[%clk 0:00:25.3]} 27... Bxg2
{[%clk 0:00:44.6]} 28. Kxg2 {[%clk 0:00:21.5]} 28... Ne6 {[%clk 0:00:35]} 29.
Nxe6 {[%clk 0:00:18.1]} 29... Rxd1 {[%clk 0:00:35]} 30. Nxc5 {[%clk 0:00:13.6]}
30... Qa1 {[%clk 0:00:28.7]} 31. Re8+ {[%clk 0:00:13.3]} 31... Kh7 {[%clk
0:00:28.9]} 32. Qe4+ {[%clk 0:00:12.9]} 32... g6 {[%clk 0:00:29.4]} 33. Qe5
{[%clk 0:00:05.8]} 33... Rg1+ {[%clk 0:00:24.3]} 34. Kh3 {[%clk 0:00:05.7]}
34... Qxe5 {[%clk 0:00:24]} 35. Rxe5 {[%clk 0:00:04.7]} 35... bxc5 {[%clk
0:00:24.9]} 36. Re7 {[%clk 0:00:05.4]} 36... Kg7 {[%clk 0:00:24.6]} 37. Rxa7
{[%clk 0:00:05.6]} 37... Ra1 {[%clk 0:00:23.8]} 38. Rc7 {[%clk 0:00:05.7]} 38...
Rxa2 {[%clk 0:00:23.7]} 39. Rxc5 {[%clk 0:00:06.1]} 39... Rxe2 {[%clk
0:00:23.9]} 40. Rc3 {[%clk 0:00:06.2]} 40... h5 {[%clk 0:00:24.2]} 41. Rf3
{[%clk 0:00:03.7]} 41... f6 {[%clk 0:00:24.2]} 42. Rc3 {[%clk 0:00:04]} 42...
Kh6 {[%clk 0:00:24.5]} 43. Rb3 {[%clk 0:00:04.3]} 43... g5 {[%clk 0:00:24.9]}
44. fxg5+ {[%clk 0:00:04.4]} 44... fxg5 {[%clk 0:00:25.2]} 45. g4 {[%clk
0:00:04.4]} 45... h4 {[%clk 0:00:24]} 46. Rb6+ {[%clk 0:00:04.1]} 46... Kg7
{[%clk 0:00:24.3]} 47. Rb7+ {[%clk 0:00:04.2]} 47... Kf6 {[%clk 0:00:24.6]} 48.
Rb6+ {[%clk 0:00:04.2]} 48... Ke5 {[%clk 0:00:24.1]} 49. Rb5+ {[%clk 0:00:03.9]}
49... Kf6 {[%clk 0:00:23.1]} 50. Rb6+ {[%clk 0:00:03.9]} 50... Re6 {[%clk
0:00:23.7]} 51. Rxe6+ {[%clk 0:00:03.7]} 51... Kxe6 {[%clk 0:00:24.6]} 52. Kg2
{[%clk 0:00:03.9]} 52... Kd5 {[%clk 0:00:25.1]} 53. Kf3 {[%clk 0:00:03.5]} 53...
Kd4 {[%clk 0:00:25.6]} 54. Kf2 {[%clk 0:00:02.7]} 54... Ke4 {[%clk 0:00:25]} 0-1

[Event "*** Titled Tuesday Blitz"]
[Site "Chess.com"]
[Date "2020.04.28"]
[Round "2"]
[White "Playgood28"]
[Black "druskacik"]
[Result "0-1"]
[WhiteElo "2230"]
[BlackElo "2544"]
[TimeControl "180+1"]
[EndTime "10:18:38 PDT"]
[Termination "druskacik won on time"]

1. d4 {[%clk 0:03:00.9]} 1... d5 {[%clk 0:02:56.7]} 2. c4 {[%clk 0:03:00.6]}
2... e6 {[%clk 0:02:56.8]} 3. Nc3 {[%clk 0:03:00.3]} 3... Nf6 {[%clk 0:02:56.7]}
4. Bg5 {[%clk 0:02:59.9]} 4... dxc4 {[%clk 0:02:56.3]} 5. e3 {[%clk 0:02:52.3]}
5... c5 {[%clk 0:02:42.8]} 6. Nf3 {[%clk 0:02:43.8]} 6... cxd4 {[%clk
0:02:41.2]} 7. Qxd4 {[%clk 0:02:42.9]} 7... Qxd4 {[%clk 0:02:40.1]} 8. Nxd4
{[%clk 0:02:42.2]} 8... Bd7 {[%clk 0:02:31.7]} 9. Bxc4 {[%clk 0:02:32.7]} 9...
Bb4 {[%clk 0:02:29.9]} 10. Bxf6 {[%clk 0:02:27.1]} 10... gxf6 {[%clk 0:02:29.3]}
11. Rc1 {[%clk 0:02:26.5]} 11... Nc6 {[%clk 0:02:12.2]} 12. Nxc6 {[%clk
0:02:24.2]} 12... Bxc6 {[%clk 0:02:11.7]} 13. f3 {[%clk 0:02:23.2]} 13... Rg8
{[%clk 0:01:54.1]} 14. Kf2 {[%clk 0:02:21.5]} 14... f5 {[%clk 0:01:54.5]} 15.
Bb5 {[%clk 0:02:07.7]} 15... Rc8 {[%clk 0:01:46.6]} 16. Bxc6+ {[%clk 0:02:01.2]}
16... Rxc6 {[%clk 0:01:47.5]} 17. Nb5 {[%clk 0:01:55.6]} 17... Bc5 {[%clk
0:01:27.2]} 18. Nd4 {[%clk 0:01:22.9]} 18... Bxd4 {[%clk 0:01:25.9]} 19. exd4
{[%clk 0:01:21.2]} 19... Rxc1 {[%clk 0:01:20.1]} 20. Rxc1 {[%clk 0:01:20.5]}
20... Kd7 {[%clk 0:01:21]} 21. g3 {[%clk 0:01:19]} 21... h5 {[%clk 0:01:10.1]}
22. h4 {[%clk 0:00:59.3]} 22... Kd6 {[%clk 0:01:08.7]} 23. Rc5 {[%clk
0:00:54.1]} 23... b6 {[%clk 0:01:05.7]} 24. Rc3 {[%clk 0:00:51.5]} 24... f6
{[%clk 0:00:58.8]} 25. b4 {[%clk 0:00:49]} 25... a6 {[%clk 0:00:45.5]} 26. a4
{[%clk 0:00:47.9]} 26... b5 {[%clk 0:00:43.9]} 27. axb5 {[%clk 0:00:46.2]} 27...
axb5 {[%clk 0:00:44.8]} 28. Rc5 {[%clk 0:00:45.5]} 28... Rb8 {[%clk 0:00:40.2]}
29. Ke3 {[%clk 0:00:45]} 29... e5 {[%clk 0:00:37.1]} 30. d5 {[%clk 0:00:41.6]}
30... Ra8 {[%clk 0:00:35.6]} 31. Rxb5 {[%clk 0:00:39.4]} 31... Ra3+ {[%clk
0:00:35.3]} 32. Ke2 {[%clk 0:00:38.1]} 32... Ra2+ {[%clk 0:00:35.5]} 33. Ke3
{[%clk 0:00:38.1]} 33... Ra3+ {[%clk 0:00:34.3]} 34. Ke2 {[%clk 0:00:38]} 34...
Ra2+ {[%clk 0:00:23.4]} 35. Ke3 {[%clk 0:00:37.2]} 35... Rg2 {[%clk 0:00:22.7]}
36. Rb6+ {[%clk 0:00:32.3]} 36... Ke7 {[%clk 0:00:19.2]} 37. Re6+ {[%clk
0:00:27.3]} 37... Kf7 {[%clk 0:00:19.1]} 38. b5 {[%clk 0:00:24.3]} 38... Rxg3
{[%clk 0:00:18.8]} 39. Kf2 {[%clk 0:00:22.9]} 39... Rh3 {[%clk 0:00:18]} 40. b6
{[%clk 0:00:22.2]} 40... Rxh4 {[%clk 0:00:18]} 41. Rc6 {[%clk 0:00:18.1]} 41...
Rb4 {[%clk 0:00:18]} 42. Rc7+ {[%clk 0:00:17.4]} 42... Kg6 {[%clk 0:00:17.7]}
43. b7 {[%clk 0:00:16.5]} 43... Rb2+ {[%clk 0:00:17.9]} 44. Kg3 {[%clk
0:00:15.7]} 44... f4+ {[%clk 0:00:18]} 45. Kh3 {[%clk 0:00:14.6]} 45... e4
{[%clk 0:00:18.4]} 46. fxe4 {[%clk 0:00:10.7]} 46... f3 {[%clk 0:00:19.3]} 47.
d6 {[%clk 0:00:10.4]} 47... f2 {[%clk 0:00:19.3]} 48. Kg2 {[%clk 0:00:09.4]}
48... h4 {[%clk 0:00:19.8]} 49. d7 {[%clk 0:00:08]} 49... h3+ {[%clk 0:00:20.3]}
50. Kf1 {[%clk 0:00:04.8]} 50... h2 {[%clk 0:00:20.7]} 0-1